bitfinex-derivatives/quotes_SOLF0:USTF0_20240815
["timestamp","ask_amount","ask_price","bid_price","bid_amount"]
[1723721732268,0.04734934,143.09,143.06,0.04585634]
[1723721732563,0.04734934,143.09,143.08,3.494]
[1723721734068,0.04734934,143.09,143.07,3.4941]
[1723721734262,0.04734934,143.09,143.06,0.04585634]
[1723721734469,3.54114934,143.09,143.06,0.04585634]
[1723721734665,3.54114934,143.09,143.07,3.4941]
[1723721734871,3.54114934,143.09,143.07,3.4741]
[1723721735370,0.04734934,143.09,143.06,0.04585634]
[1723721735873,3.4941,143.08,143.06,3.54025634]
[1723721736671,0.04734934,143.09,143.06,0.04585634]
[1723721737070,0.04734934,143.09,143.08,3.494]
[1723721740971,0.04734934,143.09,143.06,0.04585634]
[1723721741372,0.04734934,143.09,143.08,3.494]
[1723721741571,0.04734934,143.09,143.06,0.04585634]
[1723721741969,33.55734934,143.09,143.06,0.04585634]
[1723721742162,0.04734934,143.09,143.06,0.04585634]
[1723721742767,0.04734934,143.09,143.08,3.494]
[1723721743780,0.04734934,143.09,143.06,0.04585634]
[1723721744268,0.04734934,143.09,143.06,3.54015634]
[1723721744669,3.494,143.08,143.06,0.04585634]
[1723721744872,0.04734934,143.09,143.06,0.04585634]
[1723721745169,3.4942,143.07,143.06,0.04585634]
[1723721747971,39.7224,143.08,142.95,45.5102]
[1723721748167,33.51,143.05,142.95,45.5102]
[1723721748372,3.4953,143.03,143.01,3.4956]
[1723721748778,8.3953,143.03,143.01,3.4956]
[1723721749079,8.44152717,143.03,143.01,3.54278072]
[1723721749282,3.4955,143.02,143.01,0.04718072]
[1723721750383,4.8084,143.02,143.01,0.04718072]
[1723721750977,1.3129,143.02,142.91,33.51]
[1723721751172,33.51,143.0,142.9,33.51]
[1723721751375,3.497,142.96,142.94,3.4973]
[1723721751585,3.497,142.96,142.88,3.52946668]
[1723721751586,4.92,142.95,142.88,3.52946668]
[1723721751780,33.51,142.93,142.82,1.0455]
[1723721752078,6.1729,142.95,142.82,1.0455]
[1723721752079,3.4981,142.92,142.89,3.4985]
[1723721752274,41.96,142.94,142.86,0.0478513]
[1723721752275,0.04457897,142.89,142.86,0.0478513]
[1723721752688,41.96,142.94,142.88,3.4988]
[1723721753080,43.2572,142.94,142.85,3.47739788]
[1723721753279,0.04496713,142.89,142.88,45.4589]
[1723721753476,41.96,142.99,142.88,41.96]
[1723721753477,4.94,142.96,142.88,41.96]
[1723721754287,3.4965,142.98,142.96,3.4968]
[1723721755386,3.4965,142.98,142.96,0.05106915]
[1723721755387,0.05296836,142.98,142.96,0.05106915]
[1723721755782,3.4967,142.97,142.96,0.05106915]
[1723721756582,0.05296836,142.98,142.88,41.96]
[1723721756890,42.01296836,142.98,142.88,41.96]
[1723721757188,3.4974,142.95,142.88,41.96]
[1723721757387,3.4974,142.95,142.92,3.4978]
[1723721757588,3.4974,142.95,142.88,41.96]
[1723721757979,3.4974,142.94,142.92,0.049021]
[1723721758178,0.05024071,142.95,142.92,0.049021]
[1723721760387,3.4977,142.93,142.92,0.049021]
[1723721760784,45.4577,142.93,142.92,0.049021]
[1723721761891,1.32734071,142.95,142.92,0.049021]
[1723721762289,0.05024071,142.95,142.94,3.4974]
[1723721763989,0.05024071,142.95,142.92,0.049021]
[1723721764693,0.05024071,142.95,142.94,3.4974]
[1723721765082,4.94,143.01,142.92,0.049021]
[1723721765288,3.4961,143.0,142.91,11.9363]
[1723721766085,3.4962,142.99,142.91,11.9363]
[1723721766282,0.04690762,142.97,142.94,0.05276944]
[1723721766891,0.04690762,142.97,142.96,3.4969]
[1723721768797,3.54370762,142.97,142.95,3.497]
[1723721769296,0.04690762,142.97,142.94,0.05276944]
[1723721769494,41.96,142.96,142.94,0.05276944]
[1723721769696,48.2192,142.96,142.94,0.05276944]
[1723721769992,49.4851,142.96,142.9,3.4984]
[1723721770195,49.4851,142.96,142.86,4.94]
[1723721770525,45.4578,142.93,142.91,3.4981]
[1723721770997,42.00740761,142.93,142.91,0.05270021]
[1723721771394,3.4982,142.91,142.89,3.4985]
[1723721771600,41.96,142.9,142.89,3.4985]
[1723721774200,41.96,142.9,142.88,3.54776288]
[1723721774408,41.96,142.9,142.88,0.04896288]
[1723721774602,41.96,142.9,142.89,3.4986]
[1723721777920,0.05138513,142.91,142.9,3.4984]
[1723721778420,46.9,142.98,142.88,42.00896288]
[1723721778620,41.96,142.98,142.89,5.9854]
[1723721778920,7.5654,143.01,142.89,5.9854]
[1723721778921,49.5254,143.01,142.9,41.96]
[1723721779111,41.96,143.02,142.93,6.9954]
[1723721779316,3.4959,143.01,142.99,3.4961]
[1723721780109,3.54041958,143.01,142.99,3.4961]
[1723721780510,45.456,143.0,142.98,3.4963]
[1723721780719,41.96,143.0,142.98,3.4963]
[1723721781320,41.96,143.0,142.97,3.4966]
[1723721782020,45.4561,143.0,142.97,3.4966]
[1723721782823,3.4964,142.99,142.96,0.05108478]
[1723721783924,41.96,143.0,142.96,0.05108478]
[1723721784122,1.37981958,143.01,142.96,0.05108478]
[1723721784321,0.04451958,143.01,142.99,3.496]
[1723721784917,3.54031958,143.01,142.99,3.496]
[1723721785121,3.54031958,143.01,142.98,3.4963]
[1723721785924,3.496,143.0,142.96,0.05108478]
[1723721786121,0.04451958,143.01,142.96,0.05108478]
[1723721786826,0.04451958,143.01,142.97,3.4966]
[1723721787230,0.04451958,143.01,142.96,0.05108478]
[1723721787524,4.88451958,143.01,142.96,0.05108478]
[1723721787729,4.88451958,143.01,142.96,3.54788478]
[1723721788126,41.96,142.98,142.96,0.05108478]
[1723721788319,3.4967,142.97,142.96,0.05108478]
[1723721788519,41.96,142.98,142.9,4.84]
[1723721788724,41.96,142.95,142.93,3.4975]
[1723721789135,41.96,142.95,142.87,4.84]
[1723721789345,3.4978,142.93,142.91,3.4981]
[1723721789823,3.54272114,142.93,142.91,3.54955094]
[1723721790031,0.04492114,142.93,142.91,0.05145094]
[1723721790423,0.04492114,142.93,142.91,3.54965094]
[1723721790827,3.54272114,142.93,142.91,3.54965094]
[1723721791130,0.04492114,142.93,142.91,3.54965094]
[1723721791329,0.04492114,142.93,142.92,3.4979]
[1723721794633,46.8,142.99,142.96,3.4968]
[1723721795129,46.8,142.99,142.89,6.9969]
[1723721795432,41.96,142.97,142.89,6.9969]
[1723721795634,3.497,142.96,142.89,6.9969]
[1723721795830,0.04577594,142.94,142.93,3.4975]
[1723721810937,33.63577594,142.94,142.92,0.04738917]
[1723721811936,37.13347594,142.94,142.92,0.04738917]
[1723721812439,33.63577594,142.94,142.92,0.04738917]
[1723721812641,3.4977,142.93,142.92,0.04738917]
[1723721813137,37.0877,142.93,142.92,0.04738917]
[1723721813840,37.0877,142.93,142.85,11.6992]
[1723721813841,33.59,142.91,142.85,4.7]
[1723721814038,33.59,142.91,142.82,8.0017]
[1723721814237,33.59,142.91,142.87,3.499]
[1723721814238,3.4987,142.89,142.87,3.499]
[1723721814941,0.04706537,142.89,142.87,3.54477876]
[1723721815534,3.4989,142.88,142.85,3.4995]
[1723721815740,3.4989,142.88,142.78,11.7024]
[1723721815741,33.59,142.86,142.78,11.7024]
[1723721815937,33.59,142.86,142.79,36.73984215]
[1723721816240,37.0895,142.86,142.8,36.73958786]
[1723721816441,37.0895,142.86,142.78,11.7024]
[1723721816442,37.0895,142.86,142.81,19.41031097]
[1723721816736,0.04765351,142.85,142.84,3.4998]
[1723721818329,0.04765351,142.85,142.84,22.92004006]
[1723721819133,5.9343,142.92,142.84,53.01024006]
[1723721819334,33.59,142.94,142.85,47.19250239]
[1723721819538,33.59,142.94,142.86,36.74657474]
[1723721819733,33.59,142.94,142.87,19.42024006]
[1723721819937,41.96,142.94,142.9,3.4982]
[1723721820138,3.4978,142.93,142.9,3.4982]
[1723721820334,3.5458384,142.93,142.91,0.05141087]
[1723721820543,3.4979,142.92,142.91,0.05141087]
[1723721821239,0.0480384,142.93,142.91,0.05141087]
[1723721821744,3.4979,142.92,142.91,0.05141087]
[1723721822240,3.4985,142.9,142.85,19.41094854]
[1723721822536,41.96,142.9,142.85,19.41094854]
[1723721822740,3.4993,142.87,142.84,3.4997]
[1723721823143,2.6239,142.89,142.84,3.4997]
[1723721823341,3.54440684,142.87,142.84,3.53509092]
[1723721823842,3.4996,142.85,142.84,0.03539092]
[1723721824141,42.00500684,142.87,142.84,0.03539092]
[1723721825047,3.4996,142.85,142.84,0.01539092]
[1723721825843,45.4596,142.85,142.84,0.01539092]
[1723721826038,41.96,142.85,142.79,3.501]
[1723721826440,3.5005,142.82,142.79,3.501]
[1723721826641,41.96,142.85,142.75,11.7037]
[1723721826848,4.7,142.84,142.76,19.44009253]
[1723721827147,0.05237274,142.81,142.76,61.40009253]
[1723721827444,0.05237274,142.81,142.77,19.44009253]
[1723721828046,0.05237274,142.81,142.8,3.5009]
[1723721834945,0.05237274,142.81,142.8,10.5027]
[1723721839252,1.2484,142.87,142.86,3.4994]
[1723721839548,1.2484,142.87,142.8,3.5009]
[1723721840340,1.2484,142.87,142.86,3.4994]
[1723721841350,1.2484,142.87,142.85,3.54487421]
[1723721841549,4.7475,142.87,142.85,0.04537421]
[1723721842148,1.2484,142.87,142.85,0.04537421]
[1723721842447,1.2484,142.87,142.85,3.54477421]
[1723721843652,34.8384,142.87,142.85,0.04537421]
[1723721844047,3.4994,142.86,142.85,0.04537421]
[1723721844348,3.4994,142.86,142.8,3.5009]
[1723721844548,3.4994,142.86,142.79,4.6]
[1723721844549,3.4996,142.85,142.79,4.6]
[1723721844750,33.59,142.86,142.79,4.6]
[1723721845652,37.0894,142.86,142.79,4.6]
[1723721845852,0.05078517,142.84,142.79,4.6]
[1723721846465,0.05078517,142.84,142.83,3.5001]
[1723721849453,37.14068517,142.84,142.82,3.5003]
[1723721849750,37.14068517,142.84,142.77,11.6031]
[1723721849953,37.14068517,142.84,142.81,3.5005]
[1723721850155,3.5004,142.82,142.74,40.5945]
[1723721850351,3.5004,142.82,142.75,4.6]
[1723721850552,3.5004,142.82,142.79,3.5009]
[1723721850849,0.04712767,142.8,142.79,3.5009]
[1723721855558,1.3227,142.87,142.79,33.59]
[1723721855754,1.3227,142.87,142.81,33.59]
[1723721856057,1.3227,142.87,142.85,3.4994]
[1723721856256,1.3227,142.87,142.8,7.0017]
[1723721856657,4.8219,142.87,142.84,3.4997]
[1723721856865,0.05295264,142.85,142.84,3.4997]
[1723721857062,0.05295264,142.85,142.82,0.04621829]
[1723721857357,0.05295264,142.85,142.84,3.4999]
[1723721858064,33.64295264,142.85,142.82,0.04621829]
[1723721858457,37.14275264,142.85,142.82,3.54641829]
[1723721859263,33.64295264,142.85,142.83,3.5001]
[1723721859857,37.14265264,142.85,142.82,3.54641829]
[1723721860565,37.14265264,142.85,142.83,3.5001]
[1723721861267,33.64295264,142.85,142.84,3.4999]
[1723721861564,33.64295264,142.85,142.82,0.04621829]
[1723721861763,33.64295264,142.85,142.83,3.4999]
[1723721862159,33.64295264,142.85,142.84,3.4999]
[1723721862666,37.14255264,142.85,142.82,0.04621829]
[1723721862865,37.14255264,142.85,142.83,3.5]
[1723721863065,33.64295264,142.85,142.82,0.04621829]
[1723721863667,37.14255264,142.85,142.82,0.04621829]
[1723721863866,37.14255264,142.85,142.83,3.4999]
[1723721864063,0.05295264,142.85,142.82,0.04621829]
[1723721864361,0.05295264,142.85,142.84,3.4999]
[1723721869367,0.05295264,142.85,142.84,10.4997]
[1723721870364,226.0,142.98,142.87,6.9981]
[1723721870365,1.2863,142.96,142.87,6.9981]
[1723721870678,3.4974,142.95,142.88,4.52]
[1723721870862,34.8763,142.96,142.92,3.4978]
[1723721871064,3.4975,142.94,142.87,6.9981]
[1723721871264,33.59,142.95,142.88,4.52]
[1723721871467,33.59,142.95,142.91,3.4981]
[1723721871662,33.59,142.95,142.88,4.52]
[1723721871864,0.04448271,142.92,142.89,3.4985]
[1723721872167,3.54258271,142.92,142.89,3.54814402]
[1723721872768,3.4982,142.91,142.89,3.54814402]
[1723721872967,0.04448271,142.92,142.89,3.54814402]
[1723721873472,0.04448271,142.92,142.89,0.04964402]
[1723721873861,3.4983,142.91,142.89,0.04964402]
[1723721874370,3.54248271,142.92,142.89,3.54824402]
[1723721874569,3.54248271,142.92,142.89,0.04964402]
[1723721875372,0.04448271,142.92,142.9,3.4984]
[1723721875868,3.54248271,142.92,142.89,3.54814402]
[1723721876670,0.04448271,142.92,142.89,0.04964402]
[1723721877068,0.04448271,142.92,142.91,3.4982]
[1723721879572,0.04448271,142.92,142.9,3.4983]
[1723721879964,0.04448271,142.92,142.89,0.04964402]
[1723721880173,0.04448271,142.92,142.89,3.54814402]
[1723721880174,37.13258271,142.92,142.89,3.54814402]
[1723721882578,3.4982,142.91,142.89,0.04964402]
[1723721883481,3.4982,142.91,142.89,3.54824402]
[1723721884081,3.54258271,142.92,142.9,3.4983]
[1723721884377,0.04448271,142.92,142.9,3.4983]
[1723721885184,3.54258271,142.92,142.89,3.54814402]
[1723721885377,0.04448271,142.92,142.89,3.54814402]
[1723721885773,3.4982,142.91,142.89,3.54814402]
[1723721886579,3.54248271,142.92,142.9,3.4984]
[1723721887279,3.4982,142.91,142.89,3.54814402]
[1723721887780,0.04448271,142.92,142.89,3.54814402]
[1723721887999,3.4982,142.91,142.89,3.54814402]
[1723721888379,0.04448271,142.92,142.9,3.4984]
[1723721888582,0.04448271,142.92,142.89,0.04964402]
[1723721888977,0.04448271,142.92,142.91,3.4982]
[1723721889487,0.04448271,142.92,142.89,0.04964402]
[1723721889488,3.54238271,142.92,142.9,3.4983]
[1723721890085,0.04448271,142.92,142.91,3.4982]
[1723721890784,3.54248271,142.92,142.9,3.4983]
[1723721891280,3.54248271,142.92,142.91,3.4982]
[1723721891490,0.04448271,142.92,142.91,3.4982]
[1723721892997,1.3624,142.97,142.96,3.4969]
[1723721894291,0.04822349,142.98,142.97,3.4967]
[1723721894589,0.04822349,142.98,142.95,0.04735058]
[1723721894790,0.04822349,142.98,142.96,3.4968]
[1723721895590,0.04822349,142.98,142.97,3.4967]
[1723721900296,38.11,143.05,142.97,3.4967]
[1723721900297,4.52,143.05,143.02,3.4953]
[1723721900589,3.4948,143.05,143.02,3.4953]
[1723721900793,3.4948,143.05,142.97,33.59]
[1723721900794,1.3308,143.06,143.01,3.4956]
[1723721901201,3.4949,143.05,142.97,33.59]
[1723721901403,3.54148,143.05,143.02,3.54153408]
[1723721902294,3.54148,143.05,143.03,3.4952]
[1723721902495,3.54148,143.05,143.02,0.04623408]
[1723721902694,3.54148,143.05,143.02,3.54153408]
[1723721903395,3.54148,143.05,143.03,3.4952]
[1723721904300,0.04658,143.05,143.03,3.4952]
[1723721904803,3.54138,143.05,143.03,3.4952]
[1723721905494,0.04658,143.05,143.02,0.04623408]
[1723721906001,33.63658,143.05,143.02,0.04623408]
[1723721906200,3.4951,143.04,143.02,3.54173408]
[1723721907399,33.63658,143.05,143.02,0.04623408]
[1723721907599,33.59,143.03,142.96,4.46]
[1723721907897,1.2745,143.02,142.96,4.46]
[1723721908293,33.59,143.05,142.96,4.46]
[1723721908492,3.4951,143.04,143.01,3.4955]
[1723721908693,33.59,143.05,142.96,4.46]
[1723721908899,0.04639348,143.04,143.01,0.04770954]
[1723721909105,3.4953,143.03,143.01,0.04770954]
[1723721909499,0.04639348,143.04,143.01,0.04770954]
[1723721909704,0.04639348,143.04,143.01,3.54330954]
[1723721910104,3.4952,143.03,143.01,3.54330954]
[1723721910403,33.63639348,143.04,143.01,0.04770954]
[1723721911005,3.4955,143.02,143.01,0.04770954]
[1723721911196,3.4955,143.02,142.94,6.9945]
[1723721911197,33.59,143.02,142.94,6.9945]
[1723721911601,3.4958,143.01,142.94,6.9945]
[1723721911999,3.4962,142.99,142.93,38.05]
[1723721912208,33.59,143.02,142.96,3.4967]
[1723721912506,0.04539897,142.97,142.95,0.04486456]
[1723721912703,3.4963,142.99,142.96,3.4967]
[1723721912896,1.3311,143.01,142.95,0.04486456]
[1723721913096,0.04560011,142.97,142.95,0.04486456]
[1723721913297,0.04560011,142.97,142.96,3.4969]
[1723721913711,0.04560011,142.97,142.95,0.04486456]
[1723721913995,0.04560011,142.97,142.95,3.54186456]
[1723721914194,0.04560011,142.97,142.95,0.04486456]
[1723721914600,0.04560011,142.97,142.95,3.54206456]
[1723721915400,3.54230011,142.97,142.95,0.04486456]
[1723721916002,0.04560011,142.97,142.95,0.04486456]
[1723721916609,0.04560011,142.97,142.95,3.54186456]
[1723721917308,3.54250011,142.97,142.95,0.04486456]
[1723721918110,3.4969,142.96,142.95,0.04486456]
[1723721918407,0.04560011,142.97,142.95,0.04486456]
[1723721918607,3.54250011,142.97,142.95,0.04486456]
[1723721918805,0.04560011,142.97,142.95,0.04486456]
[1723721919614,3.4969,142.96,142.95,0.04486456]
[1723721921916,0.04560011,142.97,142.95,3.54186456]
[1723721922116,0.04560011,142.97,142.95,0.04486456]
[1723721922620,0.04560011,142.97,142.96,3.4969]
[1723721930411,0.04560011,142.97,142.96,37.0869]
[1723721930815,37.555,143.05,142.96,33.59]
[1723721931018,37.555,143.05,142.96,38.07]
[1723721931315,3.4953,143.03,143.0,3.4958]
[1723721932014,3.4957,143.01,143.0,0.04787816]
[1723721932419,0.04425389,143.03,143.0,0.04787816]
[1723721932622,3.4957,143.02,143.0,0.04787816]
[1723721932814,0.04425389,143.03,143.0,0.04787816]
[1723721933507,3.4957,143.01,143.0,0.04787816]
[1723721934420,0.04425389,143.03,143.0,0.04787816]
[1723721935114,3.4956,143.02,143.0,3.54367816]
[1723721935316,0.04425389,143.03,143.0,0.04787816]
[1723721935516,3.4957,143.01,143.0,0.04787816]
[1723721936116,3.4956,143.02,143.0,3.54387816]
[1723721936623,3.4957,143.01,143.0,0.04787816]
[1723721941123,0.04425389,143.03,143.0,0.04787816]
[1723721941730,0.04425389,143.03,143.0,3.54377816]
[1723721942025,13.47425389,143.03,143.0,3.54377816]
[1723721942228,3.4956,143.02,143.0,3.54377816]
[1723721942430,13.43,143.01,143.0,0.04787816]
[1723721943126,16.9257,143.01,143.0,0.04787816]
[1723721943922,3.4957,143.01,143.0,0.04787816]
[1723721944930,3.4956,143.02,143.0,0.04787816]
[1723721945118,0.04425389,143.03,143.0,0.04787816]
[1723721945934,0.04425389,143.03,143.02,3.4955]
[1723721954832,4.0129,143.1,143.07,3.4942]
[1723721955341,4.48,143.14,143.08,3.4939]
[1723721955530,38.05,143.14,143.08,3.4939]
[1723721955728,4.48,143.14,143.04,6.99]
[1723721955926,0.05083426,143.12,143.11,3.4932]
[1723721958734,4.8526,143.19,143.16,3.492]
[1723721959136,1.3612,143.19,143.16,3.492]
[1723721959435,1.3612,143.19,143.17,3.4918]
[1723721959837,1.41185266,143.19,143.17,3.54487825]
[1723721960232,0.05065266,143.19,143.18,3.4915]
[1723721962440,0.05065266,143.19,143.18,7.9715]
[1723721964657,33.57,143.25,143.18,4.48]
[1723721964853,226.0,143.35,143.18,4.48]
[1723721964854,33.57,143.27,143.18,4.48]
[1723721965355,33.57,143.27,143.18,38.05]
[1723721965650,33.57,143.28,143.18,38.05]
[1723721965857,37.0591,143.28,143.25,3.4898]
[1723721966459,33.57,143.28,143.25,3.4898]
[1723721966956,33.57,143.28,143.21,0.04897042]
[1723721966957,33.57,143.26,143.21,4.52897042]
[1723721967159,0.04460922,143.28,143.21,4.48]
[1723721967459,33.57,143.27,143.24,3.49]
[1723721967956,33.61880174,143.27,143.24,3.49]
[1723721968153,33.61880174,143.27,143.22,0.04726632]
[1723721968154,0.04880174,143.27,143.25,3.4897]
[1723721968351,0.04880174,143.27,143.22,0.04726632]
[1723721968852,33.61880174,143.27,143.22,0.04726632]
[1723721969251,33.61880174,143.27,143.24,3.4899]
[1723721970957,33.61880174,143.27,143.25,3.4898]
[1723721971660,33.61880174,143.27,143.22,0.04726632]
[1723721972054,33.61880174,143.27,143.24,3.49]
[1723721972357,37.10830174,143.27,143.22,0.04726632]
[1723721972860,33.57,143.25,143.22,0.04726632]
[1723721973260,33.57,143.25,143.23,3.4902]
[1723721974362,33.57,143.25,143.22,0.04726632]
[1723721974958,33.57,143.23,143.22,0.04726632]
[1723721976161,0.04424296,143.24,143.22,0.04726632]
[1723721976560,0.04424296,143.24,143.23,3.4903]
[1723721982870,33.57,143.31,143.28,3.489]
[1723721983070,37.0584,143.31,143.28,3.489]
[1723721983370,37.0584,143.31,143.25,4.48]
[1723721983371,36.2464,143.33,143.25,4.48]
[1723721983668,39.7343,143.33,143.25,4.48]
[1723721983960,39.7343,143.33,143.3,3.4885]
[1723721984682,3.4883,143.32,143.29,3.4889]
[1723721985366,39.77956836,143.33,143.29,3.4888]
[1723721985866,39.77956836,143.33,143.28,0.05317303]
[1723721986070,39.77956836,143.33,143.3,3.4885]
[1723721986288,0.04506836,143.33,143.28,0.05317303]
[1723721988864,0.04506836,143.33,143.32,3.4882]
[1723721990259,0.04506836,143.33,143.31,0.0457314]
[1723721990470,33.61506836,143.33,143.26,4.42]
[1723721990769,1.3167,143.32,143.26,4.42]
[1723721990970,1.3167,143.32,143.28,3.489]
[1723721991361,3.4885,143.31,143.28,3.489]
[1723721991562,37.0585,143.31,143.28,3.489]
[1723721991871,3.4887,143.3,143.28,0.05271305]
[1723721992165,33.57,143.31,143.28,0.05271305]
[1723721992366,37.0589,143.29,143.28,0.05271305]
[1723721992566,33.57,143.29,143.28,0.05271305]
[1723721993474,37.0589,143.29,143.28,0.05271305]
[1723721994670,33.57,143.29,143.28,0.05271305]
[1723721995770,33.57,143.29,143.2,92.84141864]
[1723721995974,33.57,143.27,143.21,4.42]
[1723721996370,37.0595,143.27,143.21,4.42]
[1723721996567,33.57,143.29,143.21,4.42]
[1723721996773,1.3356,143.3,143.22,33.57]
[1723721997171,0.04699978,143.26,143.24,0.04762317]
[1723721997380,0.04699978,143.26,143.25,3.4899]
[1723721997569,0.04699978,143.26,143.25,7.9099]
[1723722001681,0.04699978,143.26,143.25,3.4899]
[1723722002471,0.04699978,143.26,143.24,0.04762317]
[1723722003676,0.04699978,143.26,143.24,3.53752317]
[1723722003994,0.04699978,143.26,143.24,0.04762317]
[1723722004283,0.04699978,143.26,143.25,41.4799]
[1723722005076,1.3272,143.34,143.25,37.99]
[1723722005277,1.3272,143.34,143.28,33.57]
[1723722005579,1.3272,143.34,143.32,3.488]
[1723722006077,3.4891,143.29,143.25,3.4897]
[1723722006378,33.57,143.31,143.24,4.42]
[1723722006580,33.57,143.31,143.28,3.4889]
[1723722006776,0.04595497,143.29,143.28,3.4889]
[1723722010888,0.04595497,143.29,143.28,7.9089]
[1723722015188,0.04595497,143.29,143.28,14.8872]
[1723722015394,5.9891,143.38,143.28,4.42]
[1723722015594,2.5022,143.38,143.3,33.57]
[1723722015791,5.9891,143.38,143.34,3.4875]
[1723722015983,5.9891,143.38,143.3,33.57]
[1723722016386,5.9891,143.38,143.35,3.4873]
[1723722017085,1.3545,143.4,143.34,4.42]
[1723722017494,0.04843109,143.38,143.37,3.4869]
[1723722019390,0.04843109,143.38,143.36,0.05294059]
[1723722021096,0.04843109,143.38,143.37,3.4869]
[1723722023600,0.04843109,143.38,143.36,3.53994059]
[1723722024095,0.04843109,143.38,143.36,0.05294059]
[1723722024600,0.04843109,143.38,143.34,3.4876]
[1723722024798,2.65123109,143.38,143.34,3.4876]
[1723722024999,6.13803109,143.38,143.34,3.4876]
[1723722025291,2.65123109,143.38,143.35,3.4874]
[1723722025499,3.487,143.37,143.31,4.42]
[1723722025796,2.65123109,143.38,143.31,4.42]
[1723722025797,2.65123109,143.38,143.35,3.53246992]
[1723722025999,6.13803109,143.38,143.35,3.53246992]
[1723722026188,2.65123109,143.38,143.36,3.4871]
[1723722026391,2.65123109,143.38,143.35,0.04506992]
[1723722026796,2.65123109,143.38,143.36,3.487]
[1723722027299,2.65123109,143.38,143.37,3.4869]
[1723722027501,1.41043109,143.38,143.35,0.04506992]
[1723722027996,1.41043109,143.38,143.37,3.4869]
[1723722028706,1.41043109,143.38,143.35,0.04506992]
[1723722028707,4.89713109,143.38,143.36,3.487]
[1723722029198,1.41043109,143.38,143.35,0.04506992]
[1723722029400,1.41043109,143.38,143.37,3.4869]
[1723722029600,1.41043109,143.38,143.35,0.04506992]
[1723722029794,1.41043109,143.38,143.37,3.4869]
[1723722030701,0.04843109,143.38,143.37,3.4869]
[1723722032100,0.04843109,143.38,143.37,37.0569]
[1723722032501,0.04843109,143.38,143.37,44.0308]
[1723722034804,0.04843109,143.38,143.37,37.0569]
[1723722035400,0.04843109,143.38,143.37,3.4869]
[1723722045808,0.04843109,143.38,143.35,4.44506992]
[1723722045809,0.04843109,143.38,143.36,3.4871]
[1723722046013,0.04843109,143.38,143.35,0.04506992]
[1723722046307,3.53533109,143.38,143.35,0.04506992]
[1723722046706,4.7856,143.37,143.35,0.04506992]
[1723722046903,1.2985,143.37,143.35,0.04506992]
[1723722047110,1.2985,143.37,143.35,3.53236992]
[1723722047307,1.2985,143.37,143.35,0.04506992]
[1723722048808,4.7855,143.37,143.35,0.04506992]
[1723722049310,1.2985,143.37,143.35,0.04506992]
[1723722050106,4.7856,143.37,143.35,0.04506992]
[1723722050410,1.2985,143.37,143.3,37.97]
[1723722050608,1.2985,143.37,143.33,3.4878]
[1723722050609,3.4874,143.36,143.33,3.4878]
[1723722050907,1.2985,143.37,143.3,37.97]
[1723722051110,1.2985,143.37,143.28,37.97]
[1723722051514,0.04747206,143.34,143.31,0.05268307]
[1723722051714,0.04747206,143.34,143.32,3.488]
[1723722052007,0.04747206,143.34,143.33,33.57]
[1723722052208,0.04747206,143.34,143.33,37.0579]
[1723722054615,0.04747206,143.34,143.33,3.4879]
[1723722057314,0.04747206,143.34,143.33,37.0579]
[1723722057512,0.04747206,143.34,143.33,44.0338]
[1723722059126,0.04747206,143.34,143.33,3.4879]
[1723722067624,0.04747206,143.34,143.33,37.0579]
[1723722067827,1.2482,143.41,143.4,3.4862]
[1723722068326,1.2482,143.41,143.36,37.97]
[1723722068517,1.2482,143.41,143.4,3.4862]
[1723722069124,1.2482,143.41,143.39,3.4863]
[1723722069325,1.2482,143.41,143.39,3.53712651]
[1723722069628,0.04614862,143.42,143.39,0.05082651]
[1723722070123,0.04614862,143.42,143.41,3.486]
[1723722080431,0.04614862,143.42,143.41,22.67313981]
[1723722083129,0.04614862,143.42,143.41,22.66669885]
[1723722083329,0.04614862,143.42,143.41,36.32830012]
[1723722083524,0.04614862,143.42,143.41,19.18554211]